{"text_format":"1","workbook":"xlsx","n_sheets":6,"sheets":["Preenchimento","Instruções","Recibo","2vias","Historico","Sobre Nós"],"not_rendered":{"charts":0,"images":1,"macros":1,"external_links":3,"defined_names":19,"comments":0,"pivot_tables":0},"unopened":[],"bounds":{"document_bytes":16777216,"sheet_cells":100000,"rows_first":2000,"rows_last":500,"rows_between":2000,"halvings":0,"cell_chars":16384,"cell_head_chars":4096},"cells_cut":0,"cells_raw":0,"read":"whole","date_system":"1900"}

{"sheet":"Preenchimento","index":0,"n_rows":12,"n_cols":10,"rows_kept":12,"cut":false,"hidden":false,"merged":[[6,9,13,14],[4,4,4,6],[11,3,12,3],[5,4,5,6],[6,4,6,6],[7,4,7,6],[8,4,8,6],[9,4,9,6],[10,4,10,6],[11,4,12,6]]}
[]
[]
[]
[]
[null,null,null,"Número do Recibo:"]
[null,null,null,"Nome do Recebedor:"]
[null,null,null,"Valor do Recebido:",null,null,null,null,null,"INSTRUÇÕES:\n1. Preencha os dados que serão mostrados no recibo. \n2. Para limpar os campos, clique no botão \"Limpar\". Um novo número de recibo será gerado automaticamente.\n3. Para imprimir o recibo, clique no botão \"Gerar Recibo\""]
[null,null,null,"Data de Recebimento:"]
[null,null,null,"Cidade:"]
[null,null,null,"Nome do Emissor:"]
[null,null,null,"CPF/CNPJ:"]
[null,null,null,"Recibo referente a:"]

{"sheet":"Instruções","index":1,"n_rows":31,"n_cols":3,"rows_kept":31,"cut":false,"hidden":false,"merged":[[0,2,0,17],[2,1,2,17],[3,1,3,17],[5,1,6,17],[8,1,10,17],[30,1,30,17],[2,0,3,0],[5,0,6,0],[8,0,10,0],[12,0,15,0],[19,0,21,0],[12,1,15,17],[23,0,25,0],[27,0,28,0],[17,1,17,17],[19,1,21,17],[23,1,25,17],[27,1,28,17]]}
[null,null,"INSTRUÇÕES DE USO (LEIA ANTES DE UTILIZAR A PLANILHA)"]
[]
[1,"Antes de utilizar a planilha, é necessário habilitar as macros. Confira o passo a passo neste vídeo:"]
[null,"https://youtu.be/nOrhtwX-Oac"]
[]
[2,"O primeiro passo é acessar a guia \"Preenchimento\" e preencher os dados que serão mostrados no recibo. Para limpar os campos, clique no botão \"Limpar\". Para imprimir o recibo, clique no botão \"Gerar Recibo\"."]
[]
[]
[3,"Na guia \"Recibo\", confira se os dados estão corretos e clique em IMPRIMIR 1 VIA ou IMPRIMIR 2 VIAS.\nOs dados do recibo devem ser preenchidos e editados somente na guia \"Preenchimento\". Não faça alterações diretamente no Recibo.\nAo clicar no botão \"Salvar\", as informações do recibo serão salvas na guia \"Histórico\"."]
[]
[]
[]
[4,"Ao clicar no botão \"Histórico\" você poderá visualizar as informações salvas. Este modelo de planilha não possibilita a reimpressão de recibo emitidos anteriormente e salvos na guia Histórico."]
[]
[]
[]
[]
[5,"A planilha imprime apenas um recibo por vez (1 via ou 2 vias do mesmo recibo)."]
[]
[6,"A Planilha é 100% editável e você poderá realizar qualquer alteração que desejar. Apenas é necessário conhecimentos nos recursos utilizados na criação da planilha como, por exemplo, fórmulas e programação VBA.\nImportante: Não realizamos ajustes em nossas planilhas e, neste caso, qualquer alteração é de responsabilidade do usuário da planilha."]
[]
[]
[]
[7,"Este modelo de Planilha foi desenvolvido e testado no Microsoft Excel para Windows. Não garantimos a compatibilidade com o Excel para MAC, Google Sheets, Excel para celular ou tablet, ou qualquer outro software de Planilhas que não seja o Microsoft Excel para Windows.\t"]
[]
[]
[]
[8,"A Planilha de Recibo é comercializada exclusivamente no site oficial do desenvolvedor. A compra deste modelo não lhe garante o direito de comercializá-la ou distribuí-la em outros sites. Qualquer violação de direitos autorais, será respondida judicialmente."]
[]
[]
[9,"Caso tenha alguma dúvida, basta nos contatar através do e-mail contato@exceleasy.com.br ou através do WhatsApp: +55 (19) 99735-8062\t\t\t\t\t\t\t\t\t\t\t\t\t\t\t\t\t\t\t\t"]

{"sheet":"Recibo","index":2,"n_rows":18,"n_cols":15,"rows_kept":18,"cut":false,"hidden":false,"merged":[[2,10,3,11],[5,4,5,11],[7,4,7,11],[9,4,9,11],[2,9,3,9],[2,1,3,4],[2,6,3,6],[2,7,3,7],[9,14,21,18],[17,3,17,6],[13,9,13,11],[17,9,17,11],[15,3,15,11],[13,5,13,7]]}
[]
[]
[null,null,null,null,null,null,"Nº:  ",{"$f":"IF(Preenchimento!E5=\"\",\"\",Preenchimento!E5)","v":""},null,"VALOR:       ",{"$f":"Preenchimento!E7","v":0}]
[]
[]
[null,null,"Recebi(emos) de",null,{"$f":"IF(Preenchimento!E6=\"\",\"\",Preenchimento!E6)","v":""}]
[]
[null,null,"a importância de ",null,{"$f":"(Extenso_Valor(K3))","v":""}]
[]
[null,null,"referênte a ",null,{"$f":"IF(Preenchimento!E12=\"\",\"\",Preenchimento!E12)","v":""},null,null,null,null,null,null,null,null,null,"INSTRUÇÕES:\n1. Confira se os dados estão corretos e clique em IMPRIMIR 1 VIA ou IMPRIMIR 2 VIAS\n2. Os dados do recibo devem ser preenchidos e editados somente na guia \"Preenchimento\". Não faça alterações diretamente no Recibo.\n3. Ao clicar no botão \"Salvar\", as informações do recibo são salvas na guia \"Histórico\".\n4. Ao clicar no botão \"Histórico\" você poderá visualizar as informações salvas."]
[]
[null,null,"e para clareza firmo(amos) o presente"]
[]
[null,null,null,null,null,{"$f":"IF(Preenchimento!E9=\"\",\"\",Preenchimento!E9)","v":""},null,null,",",{"$f":"IF(Preenchimento!E8=\"\",\"\",Preenchimento!E8)","v":""}]
[]
[null,null,"Assinatura:    "]
[]
[null,null,"Nome:   ",{"$f":"IF(Preenchimento!E10=\"\",\"\",Preenchimento!E10)","v":""},null,null,null,"CPF/CNPJ:",null,{"$f":"IF(Preenchimento!E11=\"\",\"\",Preenchimento!E11)","v":""}]

{"sheet":"2vias","index":3,"n_rows":48,"n_cols":16,"rows_kept":48,"cut":false,"hidden":false,"merged":[[15,3,15,11],[5,4,5,11],[7,4,7,11],[9,4,9,11],[13,5,13,7],[13,9,13,11],[2,1,3,4],[2,6,3,6],[2,7,3,7],[2,9,3,9],[2,10,3,11],[1,15,6,20],[47,3,47,6],[47,9,47,11],[32,1,33,4],[32,6,33,6],[32,7,33,7],[32,9,33,9],[32,10,33,11],[35,4,35,11],[37,4,37,11],[39,4,39,11],[43,5,43,7],[43,9,43,11],[45,3,45,11],[17,3,17,6],[17,9,17,11]]}
[]
[null,null,null,null,null,null,null,null,null,null,null,null,null,null,null,"INSTRUÇÕES:\nOs dados do recibo devem ser preenchidos e editados somente na guia \"Preenchimento\". Não faça alterações diretamente no Recibo."]
[null,null,null,null,null,null,"Nº:  ",{"$f":"IF(Preenchimento!E5=\"\",\"\",Preenchimento!E5)","v":""},null,"VALOR:       ",{"$f":"Preenchimento!E7","v":0}]
[]
[]
[null,null,"Recebi(emos) de",null,{"$f":"IF(Preenchimento!E6=\"\",\"\",Preenchimento!E6)","v":""}]
[]
[null,null,"a importância de ",null,{"$f":"(Extenso_Valor(K3))","v":""}]
[]
[null,null,"referênte a ",null,{"$f":"IF(Preenchimento!E12=\"\",\"\",Preenchimento!E12)","v":""}]
[]
[null,null,"e para clareza firmo(amos) o presente"]
[]
[null,null,null,null,null,{"$f":"IF(Preenchimento!E9=\"\",\"\",Preenchimento!E9)","v":""},null,null,",",{"$f":"IF(Preenchimento!E8=\"\",\"\",Preenchimento!E8)","v":""}]
[]
[null,null,"Assinatura:    "]
[]
[null,null,"Nome:   ",{"$f":"IF(Preenchimento!E10=\"\",\"\",Preenchimento!E10)","v":""},null,null,null,"CPF/CNPJ:",null,{"$f":"IF(Preenchimento!E11=\"\",\"\",Preenchimento!E11)","v":""}]
[]
[]
[]
[]
[]
[]
[]
[]
[]
[]
[]
[]
[]
[]
[null,null,null,null,null,null,"Nº:  ",{"$f":"H3","v":""},null,"VALOR:       ",{"$f":"K3","v":0}]
[]
[]
[null,null,"Recebi(emos) de",null,{"$f":"E6","v":""}]
[]
[null,null,"a importância de ",null,{"$f":"(Extenso_Valor(K33))","v":""}]
[]
[null,null,"referênte a ",null,{"$f":"E10","v":""}]
[]
[null,null,"e para clareza firmo(amos) o presente"]
[]
[null,null,null,null,null,{"$f":"F14","v":""},null,null,",",{"$f":"J14","v":""}]
[]
[null,null,"Assinatura:    "]
[]
[null,null,"Nome:   ",{"$f":"D18","v":""},null,null,null,"CPF/CNPJ:",null,{"$f":"J18","v":""}]

{"sheet":"Historico","index":4,"n_rows":1,"n_cols":8,"rows_kept":1,"cut":false,"hidden":false,"merged":[]}
["Nº Recibo","Nome do recebedor","Valor","Data ","Cidade","Nome do emissor","CPF/CNPJ","Recibo referente a"]

{"sheet":"Sobre Nós","index":5,"n_rows":15,"n_cols":12,"rows_kept":15,"cut":false,"hidden":false,"merged":[[2,5,12,14],[14,5,15,7],[14,8,15,10],[14,11,15,14]]}
[]
[]
[null,null,null,null,null,"O Excel Easy nasceu em 2014 com o objetivo de unificar todo o material relacionado ao software Excel. Somos um ponto de apoio para aqueles que desejam aprender e revisar quaisquer assuntos relacionados ao Microsoft Excel. Além disso, também contamos com uma loja de planilhas personalizadas para facilitar o dia a dia dos usuários com soluções prontas para uso."]
[]
[]
[]
[]
[]
[]
[]
[]
[]
[]
[]
[null,null,null,null,null,"ARTIGOS",null,null,"PLANILHAS",null,null,"CONTATO"]